[Event "*** MasterClass Titled Tuesday Blitz"]
[Site "Chess.com"]
[Date "2017.09.05"]
[Round "2"]
[White "The_Jagermeister"]
[Black "nonscitis"]
[Result "1-0"]
[WhiteElo "2428"]
[BlackElo "2412"]
[TimeControl "180+2"]
[EndTime "13:24:15 PDT"]
[Termination "The_Jagermeister won by resignation"]

1. d4 {[%clk 0:03:01.9]} 1... Nf6 {[%clk 0:02:53.8]} 2. Nf3 {[%clk 0:03:02.3]}
2... e6 {[%clk 0:02:53.8]} 3. e3 {[%clk 0:03:02.4]} 3... d5 {[%clk 0:02:52.3]}
4. Nbd2 {[%clk 0:03:02]} 4... b6 {[%clk 0:02:52.9]} 5. Bb5+ {[%clk 0:03:02]}
5... c6 {[%clk 0:02:52]} 6. Bd3 {[%clk 0:03:02.5]} 6... Bb7 {[%clk 0:02:53]} 7.
e4 {[%clk 0:03:02.5]} 7... dxe4 {[%clk 0:02:43.5]} 8. Nxe4 {[%clk 0:03:02.8]}
8... Nxe4 {[%clk 0:02:43.7]} 9. Bxe4 {[%clk 0:03:03.3]} 9... Nd7 {[%clk
0:02:44.6]} 10. Bg5 {[%clk 0:02:57.3]} 10... Be7 {[%clk 0:02:44.9]} 11. h4
{[%clk 0:02:54.7]} 11... h6 {[%clk 0:02:43.1]} 12. Bxe7 {[%clk 0:02:53.8]} 12...
Qxe7 {[%clk 0:02:45]} 13. Qe2 {[%clk 0:02:53.6]} 13... O-O {[%clk 0:02:12.9]}
14. O-O-O {[%clk 0:02:51.9]} 14... Nf6 {[%clk 0:02:09.9]} 15. Ne5 {[%clk
0:02:48]} 15... Nxe4 {[%clk 0:02:06.5]} 16. Qxe4 {[%clk 0:02:47.7]} 16... c5
{[%clk 0:02:06]} 17. Qe3 {[%clk 0:02:45.5]} 17... Rfd8 {[%clk 0:02:03.2]} 18.
dxc5 {[%clk 0:02:42.4]} 18... Qxc5 {[%clk 0:02:03.8]} 19. Qxc5 {[%clk
0:02:39.8]} 19... bxc5 {[%clk 0:02:06]} 20. f3 {[%clk 0:02:36.3]} 20... f6
{[%clk 0:02:00.3]} 21. Nc4 {[%clk 0:02:34.1]} 21... Kf8 {[%clk 0:01:58.9]} 22.
Rxd8+ {[%clk 0:02:29.1]} 22... Rxd8 {[%clk 0:01:58.6]} 23. Rd1 {[%clk
0:02:30.6]} 23... Rxd1+ {[%clk 0:01:59.4]} 24. Kxd1 {[%clk 0:02:32.5]} 24... Ke7
{[%clk 0:02:01.7]} 25. Kd2 {[%clk 0:02:33.4]} 25... g5 {[%clk 0:02:01.7]} 26.
hxg5 {[%clk 0:02:29.6]} 26... hxg5 {[%clk 0:02:04.5]} 27. Kc3 {[%clk 0:02:27]}
27... f5 {[%clk 0:01:57]} 28. Ne5 {[%clk 0:02:25.7]} 28... Bd5 {[%clk
0:01:40.2]} 29. a4 {[%clk 0:02:17]} 29... g4 {[%clk 0:01:01.9]} 30. fxg4 {[%clk
0:02:01.2]} 30... fxg4 {[%clk 0:01:01.2]} 31. g3 {[%clk 0:02:00.9]} 31... Bf3
{[%clk 0:00:56.6]} 32. Kd3 {[%clk 0:01:30.8]} 32... Bd1 {[%clk 0:00:56.4]} 33.
Kd2 {[%clk 0:01:29.3]} 33... Kd6 {[%clk 0:00:43.1]} 34. Nc4+ {[%clk 0:01:29.6]}
34... Kd5 {[%clk 0:00:41.1]} 35. Ne3+ {[%clk 0:01:29.5]} 35... Ke4 {[%clk
0:00:42.6]} 36. Nxd1 {[%clk 0:01:30.4]} 36... Kf3 {[%clk 0:00:44.1]} 37. c3
{[%clk 0:01:13.4]} 37... Kxg3 {[%clk 0:00:43.6]} 38. b4 {[%clk 0:01:10.9]} 38...
cxb4 {[%clk 0:00:42]} 39. cxb4 {[%clk 0:01:12]} 39... Kf4 {[%clk 0:00:40.3]} 40.
b5 {[%clk 0:01:11.6]} 40... Ke5 {[%clk 0:00:38.8]} 41. Kc3 {[%clk 0:01:12.3]}
41... g3 {[%clk 0:00:37.3]} 42. Ne3 {[%clk 0:01:12.3]} 42... Ke4 {[%clk
0:00:39]} 43. Kd2 {[%clk 0:01:04.4]} 43... Kd4 {[%clk 0:00:34.6]} 44. Ke2 {[%clk
0:00:45.2]} 44... Kc5 {[%clk 0:00:34.1]} 45. Nd1 {[%clk 0:00:43.1]} 45... e5
{[%clk 0:00:16.7]} 46. Kf3 {[%clk 0:00:43]} 46... Kb4 {[%clk 0:00:18]} 47. Nb2
{[%clk 0:00:43.3]} 47... Kb3 {[%clk 0:00:11.2]} 48. a5 {[%clk 0:00:43.4]} 48...
e4+ {[%clk 0:00:12.5]} 49. Kxg3 {[%clk 0:00:43.3]} 49... Kxb2 {[%clk 0:00:13.1]}
50. Kf4 {[%clk 0:00:43.6]} 50... Kc3 {[%clk 0:00:11.8]} 51. Kxe4 {[%clk
0:00:44.6]} 51... Kb4 {[%clk 0:00:13.1]} 52. b6 {[%clk 0:00:45.7]} 52... Kxa5
{[%clk 0:00:12.1]} 53. bxa7 {[%clk 0:00:46.1]} 1-0

[Event "*** MasterClass Titled Tuesday Blitz"]
[Site "Chess.com"]
[Date "2017.09.05"]
[Round "2"]
[White "ALeks_Ivlev"]
[Black "BIG_Pirate"]
[Result "1/2-1/2"]
[WhiteElo "2418"]
[BlackElo "2333"]
[TimeControl "180+2"]
[EndTime "13:24:30 PDT"]
[Termination "Game drawn - insufficient material"]

1. d4 {[%clk 0:02:51.5]} 1... d5 {[%clk 0:03:01]} 2. c4 {[%clk 0:02:51.9]} 2...
c6 {[%clk 0:03:02.3]} 3. Nf3 {[%clk 0:02:52.7]} 3... Nf6 {[%clk 0:03:03.6]} 4.
e3 {[%clk 0:02:46.3]} 4... e6 {[%clk 0:03:04.4]} 5. Nbd2 {[%clk 0:02:46.8]} 5...
c5 {[%clk 0:03:04.4]} 6. cxd5 {[%clk 0:02:43.9]} 6... Nxd5 {[%clk 0:03:05.1]} 7.
Bb5+ {[%clk 0:02:37.2]} 7... Bd7 {[%clk 0:03:05.5]} 8. Bd3 {[%clk 0:02:37.7]}
8... Nc6 {[%clk 0:03:05.6]} 9. O-O {[%clk 0:02:38.2]} 9... cxd4 {[%clk
0:03:05.6]} 10. exd4 {[%clk 0:02:37.8]} 10... Be7 {[%clk 0:03:05.8]} 11. Ne4
{[%clk 0:02:37.7]} 11... O-O {[%clk 0:02:56.3]} 12. Re1 {[%clk 0:02:34.2]} 12...
Re8 {[%clk 0:02:45]} 13. Bd2 {[%clk 0:02:17.8]} 13... Rc8 {[%clk 0:02:44.3]} 14.
Rc1 {[%clk 0:02:12.6]} 14... Ncb4 {[%clk 0:02:41.5]} 15. Bb1 {[%clk 0:02:10.1]}
15... Rxc1 {[%clk 0:02:41.7]} 16. Bxc1 {[%clk 0:02:08.9]} 16... Nc6 {[%clk
0:02:32.2]} 17. a3 {[%clk 0:01:49.2]} 17... Bf8 {[%clk 0:02:26]} 18. b4 {[%clk
0:01:48]} 18... Nce7 {[%clk 0:02:23.8]} 19. Nd6 {[%clk 0:01:47.5]} 19... Ng6
{[%clk 0:02:21.3]} 20. Nxe8 {[%clk 0:01:47.7]} 20... Bxe8 {[%clk 0:02:23.2]} 21.
Bd2 {[%clk 0:01:45.9]} 21... Qb6 {[%clk 0:02:20.7]} 22. h4 {[%clk 0:01:42.8]}
22... Qa6 {[%clk 0:02:07.9]} 23. h5 {[%clk 0:01:25.1]} 23... Ngf4 {[%clk
0:02:04.3]} 24. Ne5 {[%clk 0:01:13.8]} 24... Qxa3 {[%clk 0:01:46.3]} 25. g3
{[%clk 0:01:01.4]} 25... f6 {[%clk 0:00:59.3]} 26. gxf4 {[%clk 0:01:02.3]} 26...
fxe5 {[%clk 0:01:00]} 27. Rxe5 {[%clk 0:01:03.8]} 27... Qh3 {[%clk 0:00:54.2]}
28. Be4 {[%clk 0:00:39.9]} 28... Nf6 {[%clk 0:00:53.5]} 29. Bg2 {[%clk
0:00:40.2]} 29... Qh4 {[%clk 0:00:49.9]} 30. Rxe6 {[%clk 0:00:40]} 30... Bxh5
{[%clk 0:00:50.9]} 31. Qb3 {[%clk 0:00:28.8]} 31... Bf7 {[%clk 0:00:44.9]} 32.
d5 {[%clk 0:00:27.8]} 32... Ng4 {[%clk 0:00:36.7]} 33. Qg3 {[%clk 0:00:28.4]}
33... Qxg3 {[%clk 0:00:37.2]} 34. fxg3 {[%clk 0:00:29.6]} 34... Bxe6 {[%clk
0:00:36]} 35. dxe6 {[%clk 0:00:30.7]} 35... b6 {[%clk 0:00:37.4]} 36. Bd5 {[%clk
0:00:31.6]} 36... Be7 {[%clk 0:00:37.4]} 37. b5 {[%clk 0:00:32.7]} 37... Kf8
{[%clk 0:00:36.9]} 38. Kg2 {[%clk 0:00:33]} 38... g6 {[%clk 0:00:36.1]} 39. Kf3
{[%clk 0:00:33.9]} 39... Nf6 {[%clk 0:00:36.9]} 40. Bc6 {[%clk 0:00:33.3]} 40...
Bd6 {[%clk 0:00:34.2]} 41. g4 {[%clk 0:00:23.4]} 41... h5 {[%clk 0:00:29.4]} 42.
g5 {[%clk 0:00:24.1]} 42... Ng8 {[%clk 0:00:26.6]} 43. Be4 {[%clk 0:00:24.8]}
43... Ne7 {[%clk 0:00:26.1]} 44. Bc3 {[%clk 0:00:25.8]} 44... Nf5 {[%clk
0:00:21]} 45. Bxf5 {[%clk 0:00:25.1]} 45... gxf5 {[%clk 0:00:21.8]} 46. g6
{[%clk 0:00:26.5]} 46... h4 {[%clk 0:00:19]} 47. Bb2 {[%clk 0:00:20.5]} 47... h3
{[%clk 0:00:19.2]} 48. Kg3 {[%clk 0:00:20.4]} 48... Bxf4+ {[%clk 0:00:18.8]} 49.
Kxh3 {[%clk 0:00:21.7]} 49... Bh6 {[%clk 0:00:17.3]} 50. Kh4 {[%clk 0:00:23]}
50... Ke7 {[%clk 0:00:18.5]} 51. Kh5 {[%clk 0:00:23.2]} 51... Bf8 {[%clk
0:00:19.6]} 52. g7 {[%clk 0:00:23.2]} 52... Bxg7 {[%clk 0:00:20.4]} 53. Bxg7
{[%clk 0:00:24.7]} 53... Kxe6 {[%clk 0:00:22.3]} 54. Kg5 {[%clk 0:00:24.8]}
54... Kd5 {[%clk 0:00:23.3]} 55. Kxf5 {[%clk 0:00:26.3]} 55... Kc4 {[%clk
0:00:24.6]} 56. Ke4 {[%clk 0:00:28.2]} 56... Kxb5 {[%clk 0:00:25.9]} 57. Kd3
{[%clk 0:00:30.1]} 57... Ka4 {[%clk 0:00:26.8]} 58. Kc2 {[%clk 0:00:32]} 58...
b5 {[%clk 0:00:27.5]} 59. Kb1 {[%clk 0:00:33.9]} 59... Kb3 {[%clk 0:00:27.7]}
60. Be5 {[%clk 0:00:35.8]} 60... a5 {[%clk 0:00:28.5]} 61. Bf4 {[%clk
0:00:37.7]} 61... a4 {[%clk 0:00:28.6]} 62. Be5 {[%clk 0:00:39.6]} 62... b4
{[%clk 0:00:29.5]} 63. Bf6 {[%clk 0:00:41.5]} 63... Kc4 {[%clk 0:00:30.2]} 64.
Bg7 {[%clk 0:00:43.4]} 64... a3 {[%clk 0:00:30.7]} 65. Bh8 {[%clk 0:00:44.2]}
65... b3 {[%clk 0:00:31.7]} 66. Bg7 {[%clk 0:00:45.6]} 66... b2 {[%clk
0:00:30.6]} 67. Bxb2 {[%clk 0:00:45.9]} 67... axb2 {[%clk 0:00:31.4]} 68. Kxb2
{[%clk 0:00:47.3]} 1/2-1/2

[Event "*** MasterClass Titled Tuesday Blitz"]
[Site "Chess.com"]
[Date "2017.09.05"]
[Round "2"]
[White "Yaacovn"]
[Black "yosephtaher"]
[Result "1-0"]
[WhiteElo "2632"]
[BlackElo "2550"]
[TimeControl "180+2"]
[EndTime "13:24:50 PDT"]
[Termination "Yaacovn won by resignation"]

1. d4 {[%clk 0:02:54.2]} 1... Nf6 {[%clk 0:03:00.7]} 2. Nf3 {[%clk 0:02:41.9]}
2... e6 {[%clk 0:03:01.4]} 3. c4 {[%clk 0:02:35.4]} 3... b6 {[%clk 0:03:01.4]}
4. g3 {[%clk 0:02:35.6]} 4... Ba6 {[%clk 0:03:01.5]} 5. Qc2 {[%clk 0:02:36.1]}
5... Bb4+ {[%clk 0:03:01.4]} 6. Bd2 {[%clk 0:02:35.6]} 6... Be7 {[%clk
0:03:01.9]} 7. Bg2 {[%clk 0:02:36.5]} 7... O-O {[%clk 0:03:01.5]} 8. O-O {[%clk
0:02:34.9]} 8... c6 {[%clk 0:03:02.3]} 9. Bg5 {[%clk 0:02:25.6]} 9... d5 {[%clk
0:03:02.1]} 10. cxd5 {[%clk 0:02:24.6]} 10... cxd5 {[%clk 0:03:00.6]} 11. Nc3
{[%clk 0:02:24.9]} 11... Nbd7 {[%clk 0:03:00.3]} 12. Rac1 {[%clk 0:01:45.3]}
12... Bb7 {[%clk 0:02:17.2]} 13. Qa4 {[%clk 0:01:07.9]} 13... a6 {[%clk
0:02:16.3]} 14. Bxf6 {[%clk 0:01:07.2]} 14... Bxf6 {[%clk 0:02:09]} 15. Qb3
{[%clk 0:01:06.9]} 15... Be7 {[%clk 0:02:05.6]} 16. a4 {[%clk 0:01:06]} 16...
Rc8 {[%clk 0:01:58.1]} 17. e3 {[%clk 0:01:05.6]} 17... Nb8 {[%clk 0:01:47.3]}
18. Ne5 {[%clk 0:01:06]} 18... Nc6 {[%clk 0:01:45.7]} 19. Nxc6 {[%clk
0:01:06.1]} 19... Bxc6 {[%clk 0:01:46.8]} 20. Rc2 {[%clk 0:01:04.9]} 20... a5
{[%clk 0:01:44.5]} 21. Rfc1 {[%clk 0:01:04.1]} 21... Bd7 {[%clk 0:01:43.6]} 22.
Bf1 {[%clk 0:01:01.8]} 22... Bb4 {[%clk 0:01:40.3]} 23. Na2 {[%clk 0:00:56.1]}
23... Rxc2 {[%clk 0:01:39.4]} 24. Rxc2 {[%clk 0:00:56.8]} 24... Bd6 {[%clk
0:01:39.5]} 25. Bb5 {[%clk 0:00:56.6]} 25... Bc8 {[%clk 0:01:37.2]} 26. Nc3
{[%clk 0:00:54.5]} 26... h5 {[%clk 0:01:28.4]} 27. Bd3 {[%clk 0:00:52.1]} 27...
h4 {[%clk 0:01:27.4]} 28. Ne2 {[%clk 0:00:48.9]} 28... hxg3 {[%clk 0:01:27.9]}
29. hxg3 {[%clk 0:00:49.5]} 29... g6 {[%clk 0:01:21.1]} 30. Rc6 {[%clk
0:00:46.8]} 30... Bb4 {[%clk 0:01:21.3]} 31. Rc1 {[%clk 0:00:44.2]} 31... Kg7
{[%clk 0:01:19.1]} 32. Kg2 {[%clk 0:00:41.3]} 32... Rh8 {[%clk 0:01:16.7]} 33.
Qc2 {[%clk 0:00:38.4]} 33... Bd7 {[%clk 0:01:06.9]} 34. b3 {[%clk 0:00:18.5]}
34... Bd6 {[%clk 0:01:04.2]} 35. Rh1 {[%clk 0:00:16.9]} 35... Rxh1 {[%clk
0:01:01.1]} 36. Kxh1 {[%clk 0:00:17.4]} 36... e5 {[%clk 0:00:56.2]} 37. dxe5
{[%clk 0:00:16.1]} 37... Bxe5 {[%clk 0:00:57.5]} 38. Kg2 {[%clk 0:00:15.4]}
38... Qh8 {[%clk 0:00:53.5]} 39. Nf4 {[%clk 0:00:12.9]} 39... Bxf4 {[%clk
0:00:53.7]} 40. Qc3+ {[%clk 0:00:11.3]} 40... f6 {[%clk 0:00:49.6]} 41. exf4
{[%clk 0:00:10.1]} 41... Qh3+ {[%clk 0:00:35.4]} 42. Kg1 {[%clk 0:00:10.6]}
42... Qe6 {[%clk 0:00:31]} 43. Qc7 {[%clk 0:00:10.7]} 43... Qc6 {[%clk
0:00:20.8]} 44. Qxc6 {[%clk 0:00:09.8]} 44... Bxc6 {[%clk 0:00:21.8]} 45. Kf1
{[%clk 0:00:09.9]} 45... Kf7 {[%clk 0:00:18.6]} 46. Ke2 {[%clk 0:00:10.4]} 46...
Be8 {[%clk 0:00:16.8]} 47. Ke3 {[%clk 0:00:10.7]} 47... Ke6 {[%clk 0:00:17.7]}
48. Kd4 {[%clk 0:00:11.4]} 48... Kd6 {[%clk 0:00:18.9]} 49. g4 {[%clk
0:00:11.9]} 49... Bf7 {[%clk 0:00:19.3]} 50. g5 {[%clk 0:00:12]} 50... f5 {[%clk
0:00:19.9]} 51. Be2 {[%clk 0:00:12.2]} 51... Be6 {[%clk 0:00:20.8]} 52. Bf1
{[%clk 0:00:12.4]} 52... Bf7 {[%clk 0:00:22]} 53. Bb5 {[%clk 0:00:12.8]} 53...
Be6 {[%clk 0:00:23]} 54. Be8 {[%clk 0:00:12.8]} 54... Bc8 {[%clk 0:00:10.8]} 55.
Bxg6 {[%clk 0:00:13]} 55... Be6 {[%clk 0:00:12]} 56. Bh7 {[%clk 0:00:12.8]}
56... Ke7 {[%clk 0:00:12.2]} 57. Ke5 {[%clk 0:00:13.4]} 1-0

[Event "*** MasterClass Titled Tuesday Blitz"]
[Site "Chess.com"]
[Date "2017.09.05"]
[Round "2"]
[White "GGuseinov"]
[Black "Kirill_Klukin"]
[Result "1-0"]
[WhiteElo "2713"]
[BlackElo "2514"]
[TimeControl "180+2"]
[EndTime "13:26:37 PDT"]
[Termination "GGuseinov won by resignation"]

1. e4 {[%clk 0:03:01.9]} 1... c5 {[%clk 0:02:59.8]} 2. Nf3 {[%clk 0:03:03.1]}
2... Nc6 {[%clk 0:03:01]} 3. Nc3 {[%clk 0:03:04.4]} 3... e5 {[%clk 0:03:01.1]}
4. Bc4 {[%clk 0:03:05.1]} 4... Be7 {[%clk 0:03:02.1]} 5. d3 {[%clk 0:03:06]}
5... Nf6 {[%clk 0:03:03.2]} 6. Ng5 {[%clk 0:03:07]} 6... O-O {[%clk 0:03:04.6]}
7. O-O {[%clk 0:03:08.2]} 7... d6 {[%clk 0:03:04.7]} 8. f4 {[%clk 0:03:09.2]}
8... exf4 {[%clk 0:03:04.5]} 9. Bxf4 {[%clk 0:03:11.1]} 9... h6 {[%clk
0:03:05.8]} 10. Nf3 {[%clk 0:03:12.3]} 10... Be6 {[%clk 0:03:07]} 11. Nd5 {[%clk
0:03:13.2]} 11... Bxd5 {[%clk 0:02:59.1]} 12. Bxd5 {[%clk 0:03:14.2]} 12... Nxd5
{[%clk 0:02:53.9]} 13. exd5 {[%clk 0:03:16.1]} 13... Nd4 {[%clk 0:02:45.9]} 14.
Nd2 {[%clk 0:02:52.3]} 14... Bg5 {[%clk 0:02:32.8]} 15. c3 {[%clk 0:02:42.3]}
15... Bxf4 {[%clk 0:02:02.2]} 16. Rxf4 {[%clk 0:02:42.4]} 16... Qg5 {[%clk
0:02:03.3]} 17. g3 {[%clk 0:02:30.1]} 17... Nf5 {[%clk 0:01:52]} 18. Ne4 {[%clk
0:02:30.5]} 18... Qg6 {[%clk 0:01:50.3]} 19. Rg4 {[%clk 0:01:53.3]} 19... Ne3
{[%clk 0:01:35.8]} 20. Rxg6 {[%clk 0:01:54.3]} 20... Nxd1 {[%clk 0:01:37]} 21.
Rxd6 {[%clk 0:01:55.1]} 21... Nxb2 {[%clk 0:01:38.3]} 22. Rb1 {[%clk 0:01:46.8]}
22... Nxd3 {[%clk 0:01:31.1]} 23. Rxb7 {[%clk 0:01:47.7]} 23... Rfd8 {[%clk
0:01:20.5]} 24. Rdd7 {[%clk 0:01:13.2]} 24... Ne5 {[%clk 0:01:10.7]} 25. Rxd8+
{[%clk 0:01:03.8]} 25... Rxd8 {[%clk 0:01:11.1]} 26. d6 {[%clk 0:01:03.3]} 26...
Rd7 {[%clk 0:00:56.1]} 27. Nxc5 {[%clk 0:00:55.1]} 27... Rxd6 {[%clk 0:00:52.4]}
28. Rxa7 {[%clk 0:00:56.1]} 28... Rd1+ {[%clk 0:00:33]} 29. Kf2 {[%clk
0:00:53.7]} 29... Rd2+ {[%clk 0:00:34.5]} 30. Ke3 {[%clk 0:00:50.9]} 30... Rxh2
{[%clk 0:00:34.3]} 31. a4 {[%clk 0:00:52.1]} 31... Ra2 {[%clk 0:00:31.6]} 32.
Ke4 {[%clk 0:00:49]} 32... Nc4 {[%clk 0:00:29.3]} 33. Kd4 {[%clk 0:00:47.4]}
33... Nd6 {[%clk 0:00:26.9]} 34. Kd5 {[%clk 0:00:43.9]} 34... Nf5 {[%clk
0:00:26.7]} 35. a5 {[%clk 0:00:43.8]} 35... Nxg3 {[%clk 0:00:27.4]} 36. a6
{[%clk 0:00:45.2]} 36... h5 {[%clk 0:00:28.8]} 37. Re7 {[%clk 0:00:29.6]} 37...
h4 {[%clk 0:00:25.8]} 38. Re3 {[%clk 0:00:21.2]} 38... Nf5 {[%clk 0:00:26.4]}
39. Rf3 {[%clk 0:00:19.6]} 39... Ne7+ {[%clk 0:00:18.6]} 40. Kd6 {[%clk
0:00:15.3]} 40... Ng6 {[%clk 0:00:19.3]} 41. Kc7 {[%clk 0:00:13.3]} 41... Ne5
{[%clk 0:00:20.4]} 42. Re3 {[%clk 0:00:12.3]} 42... Ng4 {[%clk 0:00:18.1]} 43.
Rh3 {[%clk 0:00:09]} 43... g5 {[%clk 0:00:18.1]} 44. Kb7 {[%clk 0:00:10.3]}
44... Ne5 {[%clk 0:00:18.8]} 45. Ne4 {[%clk 0:00:09.7]} 45... Nd7 {[%clk
0:00:14.9]} 46. a7 {[%clk 0:00:08.6]} 46... Rb2+ {[%clk 0:00:15.6]} 47. Kc7
{[%clk 0:00:08.9]} 47... Ra2 {[%clk 0:00:16.1]} 48. Kxd7 {[%clk 0:00:09.8]}
48... Rxa7+ {[%clk 0:00:17.2]} 49. Kd6 {[%clk 0:00:11.3]} 49... Ra5 {[%clk
0:00:18.6]} 50. c4 {[%clk 0:00:11.3]} 50... Kg7 {[%clk 0:00:19.6]} 51. c5 {[%clk
0:00:12.8]} 51... Kg6 {[%clk 0:00:21]} 52. c6 {[%clk 0:00:14.3]} 52... f5 {[%clk
0:00:22.5]} 53. c7 {[%clk 0:00:14.5]} 53... Ra8 {[%clk 0:00:23.6]} 54. Nc5
{[%clk 0:00:11.1]} 54... Kh5 {[%clk 0:00:24.5]} 55. Nd7 {[%clk 0:00:10.2]} 55...
Rc8 {[%clk 0:00:23.6]} 56. Nf6+ {[%clk 0:00:09.3]} 56... Kg6 {[%clk 0:00:24]}
57. Nd5 {[%clk 0:00:10.8]} 57... Kh5 {[%clk 0:00:24.3]} 58. Ne7 {[%clk
0:00:09.5]} 58... Rxc7 {[%clk 0:00:24.8]} 59. Kxc7 {[%clk 0:00:11.4]} 59... f4
{[%clk 0:00:19.5]} 60. Kd6 {[%clk 0:00:10.3]} 60... Kg4 {[%clk 0:00:19.7]} 61.
Rh1 {[%clk 0:00:11.2]} 61... Kf3 {[%clk 0:00:18.1]} 62. Nf5 {[%clk 0:00:10.9]}
62... Kg2 {[%clk 0:00:18.3]} 63. Ra1 {[%clk 0:00:11.9]} 63... f3 {[%clk
0:00:09.2]} 64. Ne3+ {[%clk 0:00:11.5]} 64... Kf2 {[%clk 0:00:07.9]} 65. Ng4+
{[%clk 0:00:12.3]} 65... Kg3 {[%clk 0:00:09.2]} 66. Rg1+ {[%clk 0:00:12.9]}
66... Kf4 {[%clk 0:00:08.9]} 67. Kd5 {[%clk 0:00:08.9]} 67... h3 {[%clk
0:00:09.4]} 68. Kd4 {[%clk 0:00:09.6]} 68... f2 {[%clk 0:00:05.4]} 69. Nxf2
{[%clk 0:00:10.4]} 69... h2 {[%clk 0:00:06.8]} 70. Ra1 {[%clk 0:00:10.4]} 70...
Kf3 {[%clk 0:00:07.5]} 71. Nh1 {[%clk 0:00:10.2]} 71... g4 {[%clk 0:00:08.9]}
72. Ra3+ {[%clk 0:00:09.9]} 72... Kg2 {[%clk 0:00:09.6]} 73. Ng3 {[%clk
0:00:10.9]} 73... h1=Q {[%clk 0:00:09.4]} 74. Nxh1 {[%clk 0:00:12]} 74... Kxh1
{[%clk 0:00:10.6]} 75. Rg3 {[%clk 0:00:13.6]} 75... Kh2 {[%clk 0:00:12.1]} 76.
Rxg4 {[%clk 0:00:15.5]} 1-0